{"text_format":"3","workbook":"xlsx","n_sheets":8,"sheets":["Вокал","Фольклор","Хореография","Театр","Инструментал","Цирк"," ИЗО и ДПИ Ф1","ИЗО и ДПИ Ф2"],"read":"whole","date_system":"1900"}

{"sheet":"Вокал","index":0,"n_rows":26,"n_cols":28,"rows_kept":26,"merged":[[0,0,0,27],[1,0,1,27],[2,0,2,27],[3,0,3,27],[4,0,5,0],[4,1,5,1],[4,2,5,2],[4,3,5,3],[4,4,5,4],[4,5,4,7],[4,8,4,10],[4,11,5,11],[4,12,4,15],[4,16,4,20],[4,21,5,21],[4,22,4,26],[4,27,5,27],[6,0,6,27],[24,0,24,20],[25,0,25,20]]}
["Свод сведений о клубных формированиях самодеятельного народного творчества по видам искусства за 2023 год"]
["Музыкальное искусство (вокал)"]
["Предоставляется органом управления культуры муниципального образования в отдел народного творчества ГБУК \"ИОДНТ\" ведущим специалистам по жанрам творчества                                                                                                                                                                                                                                                                                                   Чубарову Максиму Алексеевичу и Идиатулину Рустаму Фаритовичу в электронном виде  на e mail: iodnt-nt@mail.ru Телефон для связи 8 (3952)24-26-92                                                                                                                                                                                                                Контактные данные заполнившего отчет______________________________________                                                                                                                                                                                                                              "]
["Муниципальное образование (город, район)"]
["№","Полное название учреждения, поселение","Полное название коллектива, в том числе имеющих звание \"Народный\", \"Образцовый\"  (указать коллективы со званием   не только при КДУ, но и другой ведомственной принадлежности)","Год подтверждения звания (для народных и образцовых)","Год создания коллектива","Форма объединения",null,null,"Направление жанра ",null,null,"Общая численность участников коллектива","Из них численность  участников коллектива по возрастам",{"$nulls":3},"Участие в конкурсах (результат участия, название конкурса, организатор конкурса, место проведения, если заочно - указать) ",{"$nulls":4},"Руководитель коллектива (ФИО,\nзвание (при наличии), дата рождения,\nконтактный телефон,\ne-mail)","Образование руководителя (в образовании по профилю указать специализацию по диплому, учебное заведение, год окончания)",{"$nulls":4},"Сведения о КПК за истекший год (тема, количество часов, организатор курсов)"]
[{"$nulls":5},"хор","ансамбль","студия, кружок","академическое пение","народное пение","эстрадное пение",null,"до 14 лет","15-34","35-59","60 и старше","районные","областные","межрегиональные","всероссийские","международные",null,"среднее","среднее специальное непрофильное","среднее специальное профильное","высшее непрофильное","высшее профильное"]
[]
["1+AA8:I8","Му+L9+B8:Z8+B8:AA8+L9+B8:Z8+B8:AC8+B8:AB8","Народный хоровой коллектив \"Дивы дивные\"",2022,1988,1,{"$nulls":3},1,null,15,null,2,3,10,2,"Диплом участника областного праздника \"Троица\", ИОДНТ, с. Анга",null,"Гран-При Всероссийского конкурса \"Моё Отечество - моя Россия\", ГРДНТ, Москва","Лауреат II степени Международного конкурса \"Планета звёзд\", коммерческий, С-Петербург, заочно","Матрёшкина Алевтина Дементьевна,\nЗРК Иркутской области,\n05.04.1924 г.р.,\nтел. 89500000001,\nMatra_24@mail.ru",null,null,"Преподаватель хоровых дисциплин, ИМУ, 1964",1,null,"КПК \"Звучание вокального ансамбля\", 72 часа, ГБУК \"ИОДНТ\""]
[1,"Муниципальное бюджетное культурно-досуговое учреждение «Дворец культуры», г.Усолье-Сибирское","Народная детская хоровая студия эстрадного вокала «Ровесник»","2021\n",1999,null,null,1,null,null,1,37,34,3,0,0,{"$nulls":3},"Диплом участника Всероссийского песенного конкурса \"Песни нашего полка\", Москва, заочный","Дипломы лауреатов I, II, III степени Международного фестиваля-конкурса \"Юные дарования России\", г.Иркутск","Мазуренко Татьяна Александровна 02.09.1969 г.р.\nТел. 89526205469\nmazurenkota@yandex.ru\n",{"$nulls":4},"Учитель музыки, ИГПУ,        2002","КПК «Защитные механизмы голосообразования в разных жанрах и традициях детского хорового пения», 72 часа, МОО «Федерация хорового и вокального искусства»"]
[2,"Муниципальное бюджетное культурно-досуговое учреждение «Дворец культуры», г.Усолье-Сибирское","Вокальный  ансамбль «Звонкий день",null,1999,null,null,1,null,null,1,5,0,0,5,0,{"$nulls":5},"Мазуренко Татьяна Александровна 02.09.1969 г.р.\nТел. 89526205469\nmazurenkota@yandex.ru\n",{"$nulls":4},"Учитель музыки, ИГПУ,        2003","КПК «Защитные механизмы голосообразования в разных жанрах и традициях детского хорового пения», 72 часа, МОО «Федерация хорового и вокального искусства»"]
[3,"Муниципальное бюджетное культурно-досуговое учреждение «Дворец культуры», г.Усолье-Сибирское","Вокальный  ансамбль «Ладушки»",null,1975,null,null,1,null,null,1,10,10,0,0,0,{"$nulls":5},"Мазуренко Татьяна Александровна 02.09.1969 г.р.\nТел. 89526205469\nmazurenkota@yandex.ru\n",{"$nulls":4},"Учитель музыки, ИГПУ,        2004","КПК «Защитные механизмы голосообразования в разных жанрах и традициях детского хорового пения», 72 часа, МОО «Федерация хорового и вокального искусства»"]
[4,"Муниципальное бюджетное культурно-досуговое учреждение «Дворец культуры», г.Усолье-Сибирское","Народный вокальный ансамбль «Аист»",2023,1998,null,1,{"$nulls":3},1,7,0,6,1,0,{"$nulls":3},"Диплом участника Всероссийского песенного конкурса \"Песни нашего полка\", Москва, заочный",null,"Кулик Елена Николаевна \n28.03.1972 г.р.\nТел. 89086525800\ncoolyork200300@yandex.ru \n",null,null,"Музыкальный руководитель, учитель музыки, Иркутское музыкальное педагогического училище №3, 1992"]
[5,"Муниципальное бюджетное культурно-досуговое учреждение «Дворец культуры», г.Усолье-Сибирское","Вокальный ансамбль «Дебют»",null,2010,null,1,{"$nulls":3},1,22,14,8,0,0,{"$nulls":3},"Диплом участника Всероссийского песенного конкурса \"Песни нашего полка\", Москва, заочный",null,"Кулик Елена Николаевна \n28.03.1972 г.р.\nТел. 89086525800\ncoolyork200300@yandex.ru \n",null,null,"Музыкальный руководитель, учитель музыки, Иркутское музыкальное педагогического училище №3, 1993"]
[6,"Муниципальное бюджетное культурно-досуговое учреждение «Дворец культуры», г.Усолье-Сибирское","Народный хор ветеранов войны и труда  ",2023,1988,1,{"$nulls":3},1,null,25,0,0,0,25,null,"Диплом участника Областного фестиваля смотра Творческих коллективов ветеранов \"Не стареют душой ветераны","Диплом участника Регионального фестиваля посвященного 100-летию со дня образования СССР, г. Усолье-Сибирское","Диплом участника Всероссийского песенного конкурса \"Песни нашего полка\", Москва, заочный",null,"Пучкова Светланна Геннадьевна \n02.05.1968 г.р.\nТел. 89086531856\ne-mail: pychkova.sg@yandex.ru ",{"$nulls":4},"Руководитель фольклорного коллектива,Хабаровский государственный институт искусств и культуры"]
[7,"Муниципальное бюджетное культурно-досуговое учреждение «Дворец культуры», г.Усолье-Сибирское","Вокальный  ансамбль  «Ветеран»",null,1988,null,1,null,null,1,null,10,0,0,0,10,{"$nulls":5},"Пучкова Светланна Геннадьевна \n02.05.1968 г.р.\nТел. 89086531856\ne-mail: pychkova.sg@yandex.ru ",{"$nulls":4},"Руководитель фольклорного коллектива,Хабаровский государственный институт искусств и культуры"]
[8,"Муниципальное бюджетное культурно-досуговое учреждение «Дворец культуры», г.Усолье-Сибирское","Народная студия эстрадного вокала «Звезда»",2023,2010,null,null,1,null,null,1,60,45,15,0,0,{"$nulls":3},"Диплом участника Всероссийского песенного конкурса \"Песни нашего полка\", Москва, заочный",null,"Бородина Елена Геннадьевна\n29.11.1987 г.р.\nТел.89027670749\ne-mail: pysenkovalena@mail.ru\n",null,null,"хоровое дирежирование (руководитель народного хора)ГОУ СПО Иркутское областное музыкальное училище, 2006"]
[9,"Муниципальное бюджетное культурно-досуговое учреждение «Дворец культуры», г.Усолье-Сибирское","Народный ансамбль народной песни «Славица",2021,2020,null,1,null,null,1,null,15,0,9,4,2,"Диплом победителей Открытого Муниципального фестиваля казачей культуры \"Казачья удаль\" г. Ангарск ",null,null,"Диплом участника Всероссийского песенного конкурса \"Песни нашего полка\", Москва, заочный","1.Дипломы лауреатов I, II, степени Международного Арт-фестиваля \"Мы вместе\"г. Иркутск 2.Дипломы лауреатов I, II, степени Всероссийского фестиваля-конкурса \"Волна Байкала\"г.Слюдянка","Агафонов Евгений Евгеньевич\n11.05.1993 г.р.\nТел.89836919335\ne-mail:razymkova-oksana15@mail.ru\n",1]
[10,"Муниципальное бюджетное учреждение культуры «Дом культуры \"Мир\"\" , г. Усолье-Сибирское","Народный хор \"Усольчане\"",2019,1989,1,{"$nulls":3},1,null,25,null,null,5,20,{"$nulls":5},"Илюшин Сергей Александрович,\n17.02.1980г.\nсот. тел.: 8 92471134 54\n",{"$nulls":4},"Учитель музыки, ИГПУ, 2004"]
[11,"Муниципальное бюджетное учреждение культуры «Дом культуры \"Мир\"\" , г. Усолье-Сибирское","Хор имени Олега Георгиевича Чугуевского",null,1974,1,{"$nulls":3},1,null,25,{"$nulls":3},25,{"$nulls":5},"Тимофеева Анастасия Валерьевна, \n24.02.1953 г.\n8 9294343541\n",null,null,"Учитель музыки, ИРКПО, 2018"]
[12,"Муниципальное бюджетное учреждение культуры «Дом культуры \"Мир\"\" , г. Усолье-Сибирское","Народный вокальный ансамбль русской песни «Звонница»",2023,2017,null,1,null,null,1,null,9,null,null,9,{"$nulls":6},"Бондаренко Елена Сергеевна, 16.01.1986г., сот. тел.: 89041402099    elenka.bondarenko.86@list.ru",1]
[13,"Муниципальное бюджетное учреждение культуры «Дом культуры \"Мир\"\" , г. Усолье-Сибирское","Вокальная студия «Сияние»",null,2018,null,null,1,null,null,1,55,34,11,10,null,null,"1. Диплом лауреата областного фестиваля детского и юношеского творчества \"Байкальская звезда 2023\",                       г. Слюдянка"," ","1.  Диплом лауреата 2 степени, за участие во Всероссийском творческом конкурсе «Наша Масленица», заочный, г. Екатеринбург                           2.  Диплом 1 место, за участие в всероссийском творческом конкурс-марафоне \"Родина Едина. Марафон Победы\", заочный, г. Майкоп                        3. Диплом лауреата 1 степени, за участие в IV Всероссийском  патриотическом конкурсе \"Победный 45-й год - от Берлина до тихого океана, заочный, г. Ростов - на- Дону","1.  Диплом лауреата 2 степени, за участие в Международном фестивале- конкурса детского и юношеского творчества «Зимняя сказка», заочны  2. Диплом лауреата 2 степени, за участие в VIII Международном конкурсе «Жемчужина России», г. Иркутск                           3. Диплом лауреата 2 и 3 степени в Международном конкурсе \"Сибирь зажигает заёзды\", г. Иркутск                            4.  Диплом лауреата 1 степени, за участие 3 международном  многожанровом конкурсе \"Маленькие звёздочки\" , заочный          5.  Грамота 2 место, за участие в 3 международном  военно-патриотическом фестивале-конкурсе \"Катюша\", г. Иркутск                6. Диплом лауреата 2 степени, за участие в в 5 международном конкурсе \"Таланты России\" , заочный             7. Дипломы  лауреата 1и 2 степени, за участие в международном фестивале-конкурсе \"Гранд-талант\", заочный, г. Москва              8. Диплом победителя 1 степени, за участие в Международном конкурсе \"Моя отчизна\", заочный               ","Матюха Надежда Борисовна, 25.12.1976г., сот. тел.: 89025691800\n\n",{"$nulls":3},"Менеджер социально-культурной деятельности, ФГОУ ВПО \"ВСГАКИ\", 2005"]
[14,"Муниципальное бюджетное учреждение культуры «Дом культуры \"Мир\"\" , г. Усолье-Сибирское","Вокальный ансамбль «Восторг»",null,2022,null,1,{"$nulls":3},1,20,null,20,{"$nulls":7},"Бондаренко Елена Сергеевна, 16.01.1986г., сот. тел.: 89041402099    elenka.bondarenko.86@list.ru",1]
["ИТОГО","2 учреждений в том числе: КДУ - 2","14  коллективов, в том числе со званием \"Народный\" - 7;",null,null,3,6,5,0,6,8,325,137,72,34,82,1,2,1,"9, из них 9 заочно","13, из них 8 заочно",13,2,0,3,1,3,1]
[{"$nulls":5},{"$f":"SUM(F9:F22)","v":3},6,5,0,6,8,325,137,72,34,82]
["Общая характеристика вокального жанра в муниципальном образовании с указанием проблем и путей решения.      Каждый вокальный коллектив МБКДУ «Дворец культуры» обеспечен всеми необходимыми условиями для творчества и самодеятельного искусства (индивидуальные кабинеты для проведения занятий, костюмы, материально-техническое оснащение, имеются звукозаписывающие студии), репертуар коллективов формируется в соответствии с планом работы культурно-досугового учреждения, возрастными особенностями участников. Руководители коллективов направляются на курсы повышения квалификации, однако, к сожалению, подобные мероприятия проводятся за пределами нашего муниципального образования, практически отсутствуют курсы на бесплатной основе."]
["Руководитель органа управления культуры                                                                                                                                                                                                                                                                                                                                                                                                                                                                 Дата __________________ подпись_____________________________рашифровка подписи_____________________________"]

{"sheet":"Фольклор","index":1,"n_rows":14,"n_cols":28,"rows_kept":14,"merged":[[0,0,0,27],[1,0,1,27],[2,0,2,27],[3,0,3,27],[4,0,5,0],[4,1,5,1],[4,2,5,2],[4,3,5,3],[4,4,5,4],[4,5,4,7],[4,8,5,10],[4,11,5,11],[4,12,4,15],[4,16,4,20],[4,21,5,21],[4,22,4,26],[4,27,5,27],[6,0,6,27],[7,8,7,10],[8,8,8,10],[9,8,9,10],[10,8,10,10],[12,0,12,21],[13,0,13,21]]}
["Свод сведений о клубных формированиях самодеятельного народного творчества по видам искусства за 2023 год"]
["Музыкальный фольклор"]
["Предоставляется органом управления культуры муниципального образования в отдел народного творчества ГБУК \"ИОДНТ\" ведущему специалисту по жанрам творчества                                                                                                                                                                                        Кустовой Ольге Викторовне в электронном виде  на e-mail: iodnt-nt@mail.ru Телефон для связи 8 (3952)24-26-92                                                                                                                                                                                                                                                                                                                                               Контактные данные заполнившего отчет  ____________________________________________________________                                                                                                                                         "]
["Муниципальное образование  (город, район)"]
["№","Полное название учреждения, поселение","Полное название коллектива, в том числе имеющих звание \"Народный\", \"Образцовый\"  (указать коллективы со званием   не только при КДУ, но и другой ведомственной принадлежности)","Год подтверждения звания (для народных и образцовых)","Год создания коллектива","Форма объединения",null,null,"Национальная принадлежность",null,null,"Общая численность участников коллектива","Из них численность  участников коллектива по возрастам",{"$nulls":3},"Участие в конкурсах (результат участия, название конкурса, организатор конкурса, место проведения, если заочно - указать) ",{"$nulls":4},"Руководитель коллектива (ФИО,\nзвание (при наличии), дата рождения,\nконтактный телефон,\ne-mail)","Образование руководителя (в образовании по профилю указать специализацию по диплому, учебное заведение, год окончания)",{"$nulls":4},"Сведения о КПК за истекший год (тема, количество часов, организатор курсов)"]
[{"$nulls":5},"ансамбль"," коллектив","другое",{"$nulls":4},"до 14 лет","15-34","35-59","60 и старше","районные, городские","областные","межрегиональные","всероссийские","международные",null,"среднее","среднее специальное","среднее специальное профильное","высшее","высшее профильное"]
["Образец заполнения"]
[1,"Муниципальное казенное учреждение культуры \"Культурно-досуговый центр\" п. Березовый","Народный фольклорный ансамбль \"Кудерышки\"",2022,2005,1,null,null,"русский",null,null,10,null,10,{"$nulls":3},"Диплом областного праздника \"Троица\" ГБУК \"ИОДНТ\" с. Анга 2023г.",null,null,"Лауреат I степени Международного конкурса \"Заиграй моя волынка\" г. Москва, заочно","Иванова Галина Семеновна 09.11.1964 г. 89501238754  e-mail: Galina@mail.ru",null,null,"руководитель фольклорного ансамбля ВГАКИ 1999",null,null,"КПК  \"Песенная традиция\" 36 ч. УМЦ \"Байкал\""]
[2,"и т.д."]
[3,"и т.д."]
["Итого:","20 учреждений в том числе КДУ - 19, ДШИ - 1","5 коллективов,  в том числе  со званием \"Народный\" - 1",null,null,3,2,null,"4 русских, 1 татарский",null,null,65,45,10,5,5,2,1,0,1,"3, из них 2 заочно",5,null,1,3,null,1,3]
[]
["Общая характеристика жанра в муниципальном образовании с указанием  проблем и путей решения.                                                                                                                                                                                                                                                                                                                                       "]
["Руководитель органа управления культуры.                                                                                                                                                                                                                                                                                                                                                                                                                                                                           Дата __________ подпись_____________________расшифровка подписи___________________________________"]

{"sheet":"Хореография","index":2,"n_rows":26,"n_cols":34,"rows_kept":26,"merged":[[0,0,0,33],[1,0,1,33],[2,0,2,33],[3,0,3,33],[4,0,5,0],[4,1,5,1],[4,2,5,2],[4,3,5,3],[4,4,5,4],[4,5,4,7],[4,8,5,10],[4,11,4,16],[4,17,5,17],[4,18,4,21],[4,22,4,26],[4,27,5,27],[4,28,4,32],[4,33,5,33],[6,0,6,33],[7,8,7,10],[8,8,8,10],[9,8,9,10],[10,8,10,10],[11,8,11,10],[12,8,12,10],[13,8,13,10],[14,8,14,10],[15,8,15,10],[16,8,16,10],[17,8,17,10],[18,8,18,10],[19,8,19,10],[22,8,22,10],[24,0,24,20],[25,0,25,20]]}
["Свод сведений о клубных формированиях самодеятельного народного творчества по видам искусства за 2023 год"]
["Хореографической искусство"]
["Предоставляется органом управления культуры муниципального образования в отдел народного творчества ГБУК \"ИОДНТ\" ведущему специалисту по жанрам творчества                                                                                                                                                                                                                                                                                             Гориной Ольге Викторовне в электронном виде на e-mail: iodnt-nt@mail.ru Телефон: 8 (3952) 24-26-92                                                                                                                                                                                                                                                                                                                                                                                                                                                                                                            Контактные данные заполнившего отчет ________________________________________________"]
["Муниципальное образование  (город, район)"]
["№","Полное название учреждения, поселение","Полное название коллектива, в том числе имеющих звание \"Народный\", \"Образцовый\"  (указать коллективы со званием   не только при КДУ, но и другой ведомственной принадлежности)","Год подтверждения звания (для народных и образцовых)","Год создания коллектива","Форма объединения",null,null,"Национальная принадлежность",null,null,"Жанр творчества",{"$nulls":5},"Общая численность участников","Из них численность  участников коллектива по возрастам",{"$nulls":3},"Участие в конкурсах (результат участия, название конкурса, организатор конкурса, место проведения, если заочно - указать) ",{"$nulls":4},"Руководитель коллектива (ФИО,\nзвание (при наличии), дата рождения,\nконтактный телефон,\ne-mail)","Образование руководителя (в образовании по профилю указать специализацию по диплому, учебное заведение, год окончания)",{"$nulls":4},"Сведения о КПК за истекший год (тема, количество часов, организатор курсов)"]
[{"$nulls":5},"ансамбль"," кружок","другое",{"$nulls":3},"классический танец","народный танец","современная хореография","бальный танец","эстрадно-спортивный","другое",null,"до 14 лет","15-34","35-59","60 и старше","районные, городские","областные","межрегиональные","всероссийские","международные",null,"среднее","среднее специальное","среднее специальное профильное","высшее","высшее профильное"]
[]
[1,"Муниципальное казенное учреждение культуры \"Социально-культурный комплекс\" п. Парковый","Народный хореографический ансамбль \"Ассоль\"",2021,1989,1,null,null,"русский",null,null,1,{"$nulls":5},20,5,15,{"$nulls":5},"Диплом II степени Всероссийского фестиваля-конкурса \"Искусство танца\" г. Екатеринбург, заочно","Лауреат I степени Международного конкурса \"Звонкий каблучок\" ГРДНТ им. В.Д. Поленова г. Москва","Черных Елена Геннадьевна 12.06.1976 г. Elena@mail.ru",null,null,"руководитель хореографического коллектива, Иркутский колледж культуры 2005",null,null,"КПК  \"Основы современной хореографии\" 72 часа УМЦ \"Байкал\""]
[1,"Муниципальное бюджетное культурно-досуговое учреждение «Дворец культуры», г.Усолье-Сибирское","Народный хореографический коллектив «Радость»",2023,1983,0,0,1,"русский",null,null,0,1,0,0,0,0,60,42,18,0,0,"Диплом победителей Открытого Муниципального фестиваля казачей культуры \"Казачья удаль\" г. Ангарск ",null,null,"1.Диплом лауреатов I степени Всероссийского многожанрового конкурса творчества и искусства \"Таланты могучей \"России\", онлайн, г.Москва  2.Всероссийский конкурс хореографического искусства \"Стежки-дорожки\"",".Диплом лауреатов II степени Байкальского международного Арт-фестиваля \"Виват-Талант\", г.Иркутск, \n.Диплом лауреатов I степени  Международного конкурса искусств \"Первые ласточки\", заочный, г. Москва \n.Диплом лауреатов III степени Международного конкурс-фестиваля исполнительского мастерства \"Сибирская ассамблея искусств, г. Новосибирск","Корженевская Юлия Викторовна\n12.03.1980 г.\n89021780011\ne-mail:piramidas@list.ru\n",{"$nulls":4},"Художественный руководитель, ФГОУ ВПО \"Восточно-Сибирская академия культуры и искусств\", 2008"]
[2,"Муниципальное бюджетное культурно-досуговое учреждение «Дворец культуры», г.Усолье-Сибирское","Студия раннего хореографического воспитания «Горошины»",null,2014,0,0,1,"русский",null,null,0,1,0,0,0,0,41,41,0,0,0,{"$nulls":5},"Головкова Марина Юрьевна\n09.11.1969 г.\n89021708016\ne-mail:\ngmu-69@mail",{"$nulls":4},"Народное художественное творчество, ФГОУ ВПО \"Кемеровский государственный университет культуры и искусств\", 2010"]
[3,"Муниципальное бюджетное культурно-досуговое учреждение «Дворец культуры», г.Усолье-Сибирское","Студия раннего хореографического воспитания «Кроха",null,2014,0,0,1,"русский",null,null,0,1,0,0,0,0,25,25,0,0,0,{"$nulls":5},"Корженевская Юлия Викторовна\n12.03.1980 г.\n89021780011\ne-mail:piramidas@list.ru",{"$nulls":4},"Художественный руководитель, ФГОУ ВПО \"Восточно-Сибирская академия культуры и искусств\", 2008"]
[4,"Муниципальное бюджетное культурно-досуговое учреждение «Дворец культуры», г.Усолье-Сибирское","Народный коллектив бального танца «Романтика",2023,1994,0,0,1,"русский",null,null,0,0,0,1,0,0,88,78,10,0,0,null,"Дипломы лауреатов I, II степени Открытого областного фестиваля сценического бального танца \"Байкальская орхидея\"",null,null,"1.Диплом лауреатов I степени Байкальского международного Арт-фестиваля \"Виват-Талант\", г.Иркутск, 2. Диплом лауреатов I степени Байкальского Международного фестиваля спортивного и  сценического бального танца 3.Диплом лауреатов III степени Международного конкурс-фестиваля исполнительского мастерства \"Сибирская ассамблея искусств, г. Новосибирск","Миколайчук Алина Леонидовна, \n09.10.1981 г.\n89246228343, \ne-mail:\nmikolaichukA@mail.ru",{"$nulls":4},"Народное торжественное творчество, Алтайская государственная академия культкры и искусства, 2011"]
[5,"Муниципальное бюджетное культурно-досуговое учреждение «Дворец культуры», г.Усолье-Сибирское","«Хобби-класс» при народном коллективе  бального танца «Романтика»",null,2006,0,0,1,"русский",null,null,0,0,0,1,0,0,13,0,6,7,0,null,"Дипломы лауреатов I, II степени Открытого областного фестиваля сценического бального танца \"Байкальская орхидея\"",null,null,"Диплом лауреатов I степени Байкальского Международного фестиваля спортивного и  сценического бального танц","Миколайчук Алина Леонидовна, \n09.10.1981 г.\n89246228343, \ne-mail:\nmikolaichukA@mail.ru",{"$nulls":4},"Народное торжественное творчество, Алтайская государственная академия культкры и искусства, 2012"]
[6,"Муниципальное бюджетное культурно-досуговое учреждение «Дворец культуры», г.Усолье-Сибирское","Народный коллектив эстрадного танца «Экспрессия»",2023,1993,0,0,1,"русский",null,null,0,0,1,0,0,null,127,114,13,0,0,null,null,"Диплом 2 место Межрегионального танцевального чемпионата \"Движ\", г.Улан-Удэ",null,null,"Соловьева Екатерина Андреевна                04.07.2000 \n89086475551                    e-mail: supernaturi2000@list.ru  Вяткина Дарья Алексеевна\n12.09.2004\n89041515548\ne-mail:             Апрельская Полина Константиновна 19.10.1997г.\n89041409513                     e-mail:stalkers_91@mail.ru",1,1,null,null,"(Апрельская П.К.)  Народная художественная культура,, ФГБОУ ВО \"Алтайский государственный институт культуры\" 2020"]
[7,"Муниципальное бюджетное культурно-досуговое учреждение «Дворец культуры», г.Усолье-Сибирское","Студия танца «Экспрессия 18+»",null,2019,0,0,1,"русский",null,null,0,0,1,0,0,0,25,0,25,0,0,{"$nulls":5},"Соловьева Екатерина Андреевна                04.07.2000 \n89086475551                    e-mail: supernaturi2000@list.ru  Вяткина Дарья Алексеевна\n12.09.2004\n89041515548\ne-mail:             Апрельская Полина Константиновна 19.10.1997г.\n89041409513                     e-mail:stalkers_91@mail.ru",1,1,null,null,"(Апрельская П.К.) Народная художественная культура,, ФГБОУ ВО \"Алтайский государственный институт культуры\" 2021"]
[8,"Муниципальное бюджетное культурно-досуговое учреждение «Дворец культуры», г.Усолье-Сибирское","Хореографический коллектив «Овация»",null,2017,0,0,1,"русский",null,null,0,0,1,0,0,0,30,22,8,0,0,{"$nulls":5},"Соловей Анастасия Игоревна \n27.11.1999\n89501394930 \ne-mail: agapitova882@gmail.com",null,null,"Хореографическое творчество, ГБПОУ Тркутский областной коледж культуры "]
[9,"Муниципальное бюджетное культурно-досуговое учреждение «Дворец культуры», г.Усолье-Сибирское","Подготовительная группа хореографического коллектива «Овация»",null,2017,0,0,1,"русский",null,null,0,0,1,0,0,0,25,25,0,0,0,{"$nulls":5},"Соловей Анастасия Игоревна \n27.11.1999\n89501394930 \ne-mail: agapitova882@gmail.com",null,null,"Хореографическое творчество, ГБПОУ Тркутский областной коледж культуры "]
[10,"Муниципальное бюджетное учреждение культуры «Дом культуры \"Мир\"\" , г. Усолье-Сибирское","Народный ансамбль эстрадного танца «Серпантин»",2021,1971,1,0,0,"русский",null,null,0,0,1,0,0,0,18,0,18,0,0,{"$nulls":4},"Диплом лауреата 3 степени за участие во II Международном конкурсе - фестивале исполнительного мастерства \"Сибирские ассамблеи\", г. Новосибирск","Гараева Нурсина Адгамовна,\n29.05.1957г.\nсот. тел.: 89245485276\n\n",0,0,"Руководитель самодеятельного танцевального коллектива, ОКПУ, 1977",0,0,0]
[11,"Муниципальное бюджетное учреждение культуры «Дом культуры \"Мир\"\" , г. Усолье-Сибирское","Хореографический ансамбль «Бодрячок»",null,2022,1,0,0,"русский",null,null,0,0,1,0,0,0,22,22,0,0,0,{"$nulls":5},"Гараева Нурсина Адгамовна,\n29.05.1957г.\nсот. тел.: 89245485276\n\n",0,0,"Руководитель самодеятельного танцевального коллектива, ОКПУ, 1977",0,0,0]
[12,"Муниципальное бюджетное учреждение культуры «Дом культуры \"Мир\"\" , г. Усолье-Сибирское","Студия детского танца «Спутник»\n(группы: Шарики, Марионетки, Драйв)\n",null,2022,0,0,1,"русский",null,null,0,0,1,0,0,0,64,64,0,0,0,{"$nulls":5},"Григорьева Дарья Игоревна,\n21.01.1983 г.\nсот. тел.: 89246228693\n",0,0,0,0,"Художественный руководитель хореографического коллектива, ФГОУВ ПО \"Алтайская государственная академия искусств и культуры\", 2009",0]
[]
[]
["Итого:","2 учреждений, в том числе КДУ - 2,","12 коллективов, в том числе со званием \"Народный\" - 4;",null,null,2,{"$f":"SUM(G9:G17)","v":0},10,{"$nulls":3},{"$f":"SUM(L9:L17)","v":0},{"$f":"SUM(M9:M20)","v":3},7,{"$f":"SUM(O9:O20)","v":2},{"$f":"SUM(P9:P20)","v":0},{"$f":"SUM(Q9:Q20)","v":0},538,433,98,{"$f":"SUM(U9:U20)","v":7},{"$f":"SUM(V9:V20)","v":0},1,2,1,"2, из них 1 заочно",8,9,1,1,2,0,5,0]
[]
["Общая характеристика жанра в муниципальном образовании с указанием проблем и путей решения.     Все хореографические коллективы МБКДУ «Дворец культуры» обеспечены необходимыми условиями для творчества и самодеятельного искусства (кабинеты для проведения занятий, оборудованные танцевальные залы, костюмы, аппаратура), репертуар коллективов формируется в соответствии с планом работы МБКДУ «Дворец культуры», возрастными особенностями участников. Руководители коллективов направляются на курсы повышения квалификации, однако все подобные мероприятия проводятся за пределами нашего муниципального образования, практически отсутствуют курсы на бесплатной основе, были бы интересны курсы повышения квалификации или мастер классы, которые бы проводились на базе учреждения и не только для руководителей, но и для участников клубных формирований.\n\n                                                                                                                                                                                                                                                                                                                                             "]
["Руководитель органа управления культуры                                                                                                                                                                                                                                                                                                                                                                                                                                                   Дата______________________подпись_____________________________расшифровка подписи_____________________________________________"]

{"sheet":"Театр","index":3,"n_rows":22,"n_cols":31,"rows_kept":22,"merged":[[0,0,0,30],[1,0,1,30],[2,0,2,30],[3,0,3,30],[4,0,5,0],[4,1,5,1],[4,2,5,2],[4,3,5,3],[4,4,5,4],[4,5,4,8],[4,9,4,13],[4,14,5,14],[4,15,4,18],[4,19,4,23],[4,24,5,24],[4,25,4,29],[4,30,5,30],[6,0,6,30],[12,0,13,0],[12,1,13,1],[12,2,13,2],[12,3,13,3],[12,4,13,4],[12,5,13,5],[12,6,13,6],[12,7,13,7],[12,8,13,8],[12,9,13,9],[12,10,13,10],[12,11,13,11],[12,12,13,12],[12,13,13,13],[12,14,13,14],[12,15,13,15],[12,16,13,16],[12,17,13,17],[12,18,13,18],[12,19,13,19],[12,20,13,20],[12,21,13,21],[12,22,13,22],[12,23,13,23],[12,25,13,25],[12,26,13,26],[12,29,13,29],[14,0,15,0],[14,1,15,1],[14,2,15,2],[14,3,15,3],[14,4,15,4],[14,5,15,5],[14,6,15,6],[14,7,15,7],[14,8,15,8],[14,9,15,9],[14,10,15,10],[14,11,15,11],[14,12,15,12],[14,13,15,13],[14,14,15,14],[14,15,15,15],[14,16,15,16],[14,17,15,17],[14,18,15,18],[14,19,15,19],[14,20,15,20],[14,21,15,21],[14,22,15,22],[14,23,15,23],[14,25,15,25],[14,26,15,26],[14,27,15,27],[14,30,15,30],[20,0,20,20],[21,0,21,20]]}
["Свод сведений о клубных формированиях самодеятельного народного творчества по вдам искусства за 2023 год"]
["Театральное искусство"]
["Предоставляется органом управления культуры муниципального образования в отдел народного творчества ГБУК \"ИОДНТ\" ведущему специалисту по жанрам творчества                                                                                                                                                                                                                                                                            Базилевой Галине Николаевне в электронном виде на e-mail: iodnt-nt@mail.ru Телефон для связи 8 (3952)24-26-92                                                                                                                                                                                                                                                                                                                                                                                                                                                                                                  Контактные данные заполнившего отчет __________________________________________"]
["Муниципальное образование  (город, район)"]
["№","Полное название учреждения, поселение","Полное название коллектива, в том числе имеющих звание \"Народный\", \"Образцовый\"  (указать коллективы со званием   не только при КДУ, но и другой ведомственной принадлежности)","Год подтверждения звания (для народных и образцовых)","Год создания коллектива","Форма объединения",{"$nulls":3},"Направление жанра",{"$nulls":4},"Общая численность участников","Из них численность  участников коллектива по возрастам",{"$nulls":3},"Участие в конкурсах (результат участия, название конкурса, организатор конкурса, место проведения, если заочно - указать) ",{"$nulls":4},"Руководитель коллектива (ФИО,\nзвание (при наличии), дата рождения,\nконтактный телефон,\ne-mail)","Образование руководителя (в образовании по профилю указать специализацию по диплому, учебное заведение, год окончания)",{"$nulls":4},"Сведения о КПК за истекший год (тема, количество часов, организатор курсов)"]
[{"$nulls":5},"коллектив"," кружок","студия","театр","театр миниатюры","кукольный театр","художественное слово","драматический театр","музыкальный театр",null,"до 14 лет","15-34","35-59","60 и старше","районные, городские","областные","межрегиональные","всероссийские","международные",null,"среднее","среднее специальное","среднее специальное профильное","высшее","высшее профильное"]
[]
[1,"Муниципальное бюджетное учреждение культуры \"Культурно-досуговый центр\" с. Боровое","Народный театр \"Трость\"",2022,2001,{"$nulls":3},1,{"$nulls":3},1,null,18,0,7,8,3,null,"Лауреат I степени областного конкурса театральных коллективов \"Прикосновение к классике\"",null,null,"Диплом I степени Международного конкурса \"Маска и люди\"  г. Екатеринбург, заочно","Шишкова Мария Львовна 01.10.1985 Mariy@mail.ru 89145236485",{"$nulls":4},"режиссер ВСГАКИ 2002","КПК \"Режиссерская работа\" 36 часов УМЦ \"Байкал\""]
[1,"Муниципальное бюджетное культурно-досуговое учреждение «Дворец культуры», г.Усолье-Сибирское","Народный  театральный коллектив  «Сказка»",2021,1971,0,0,0,1,0,0,0,1,0,28,23,5,0,0,"Диплом участника Городского театрального фестиваля \"Виват-театр\"",null,null,"Лауреаты II степени Всероссийского фестиваля народного творчества \"Единство России\"заочный ","1.Лауреаты I и II степени Международного Арт-фестиваля \"Будущее планеты\", г. Казань \n2. Диплом лауреата I степени Междунарордного многожанрового конкурса \"Пространство культуры\" г. Москва , заочный, 3.Диплом победителя Международного творческого конкурса памяти В.Лановова, г. Москва \n4.Лауреаты II степени  Международного творческого конкурса-фестиваля \"Звездный дождь\", г. Москва , заочный 5.Лауреаты I степени  Международного -фестиваль-конкурса талантов \"Триумф\", г. Санкт-Петербург , заочный ","Медведева Анна Александровна \n16.07.1943 г. \n89021757100\ne-mail\n",0,0,0,0,"Режиссер ВСГИК 1968"]
[2,"Муниципальное бюджетное культурно-досуговое учреждение «Дворец культуры», г.Усолье-Сибирское","Кружок-спутник народного театрального коллектива «Сказка»  Студия чтецов",0,1971,0,1,0,0,1,0,0,0,0,10,10,0,0,0,{"$nulls":5},"Медведева Анна Александровна \n16.07.1943 г. \n89021757100\ne-mail\n",0,0,0,0,"Режиссер ВСГИК 1969"]
[3,"Муниципальное бюджетное учреждение культуры «Дом культуры \"Мир\"\" , г. Усолье-Сибирское","Народный театр «Общение»",2021,1960,0,0,0,1,0,0,0,1,0,20,0,14,6,0,0,0,0,0,0,"Сизых Марина Конкордиевна     \n15.12.1958г.\nсот. тел.: +79501154180\n",0,0,"Руководитель самодеятельного театрального коллектива, ИУК, 1981 г.",0,0,"КПК \"Современные технологии художественное оформление спектаклей, как часть креативной индустрии\"                    36 часов                ФГБОУ ВО \"ДВИИ\""]
[4,"Муниципальное бюджетное учреждение культуры «Дом культуры \"Мир\"\" , г. Усолье-Сибирское"," Театр кукол «Артемон»",0,2017,0,0,0,1,0,1,0,0,0,20,0,10,5,5,0,0,0,0,0,"Сизых Марина Конкордиевна     \n15.12.1958г.\nсот. тел.: +79501154180\n",0,0,"Руководитель самодеятельного театрального коллектива, ИУК, 1981 г.",0,0,"КПК \"Современные технологии художественное оформление спектаклей, как часть креативной индустрии\"                    36 часов                ФГБОУ ВО \"ДВИИ\""]
[5,"Муниципальное бюджетное учреждение культуры «Дом культуры \"Мир\"\" , г. Усолье-Сибирское","Народный театр «Ковчег»",2021,1972,0,0,0,1,0,0,0,1,0,22,0,0,20,2,0,0,0,0,0,"Сизых Марина Конкордиевна\n15.12.1958г.\nсот. тел.: +79501154180\n",0,0,"Руководитель самодеятельного театрального коллектива, ИУК, 1981 г.",null,0,"КПК \"Современные технологии художественное оформление спектаклей, как часть креативной индустрии\"                    36 часов                ФГБОУ ВО \"ДВИИ\""]
[{"$nulls":24},"Комаров Максим Андреевич, 19.08.1989 г., сот.тел.: 89642132410",{"$nulls":3},1]
[6,"Муниципальное бюджетное учреждение культуры «Дом культуры \"Мир\"\" , г. Усолье-Сибирское","Театр миниатюр «Креатив»",0,2022,0,0,0,1,1,0,0,0,0,20,20,0,0,0,0,0,0,0,0,"Медведева Лариса Николаевна\n14.12.1959г.\nсот. тел.:89246149992,\nlarmed2010@mail.ru\n\n",0,0,0,null,"Режиссер самодеятельного театрального коллектива, ВСГИК г. Улан - Удэ, 1983 г.",0]
[{"$nulls":24},"Комаров Максим Андреевич, 19.08.1989 г., сот.тел.: 89642132410",{"$nulls":3},1]
[7,"Муниципальное бюджетное учреждение культуры «Дом культуры \"Мир\"\" , г. Усолье-Сибирское","Народная театральная студия  «Большая семья»",2023,2011,0,0,1,0,0,0,0,1,0,55,23,17,15,0,0,"1. Диплом лауреата 3 степени, за участие в 10 областном фестивале-конкурсе любительского театрального искусства \"Театр - это жизнь\",              г. Иркутск",0,"1. Диплом лауреата 1 степени, за участие во Всероссийском творческом конкурсе «Наша Масленица», заочный                      "," Диплом лауреата 1, 2  степени, за участие в международном конкурсе талантов \"Горизонт творчества\", заочный                     ","Медведева Лариса Николаевна\n14.12.1959г.\nсот. тел.:89246149992,\nlarmed2010@mail.ru\n\n",0,0,0,0,"Режиссер самодеятельного театрального коллектива, ВСГИК г. Улан - Удэ, 1983 г.",0]
[8,"Муниципальное бюджетное учреждение культуры «Дом культуры \"Мир\"\" , г. Усолье-Сибирское","Творческое объединение «Слово»",0,2022,0,1,0,0,0,0,0,1,0,22,8,6,8,0,0,0,0,0,0,"Медведева Лариса Николаевна\n14.12.1959г.\nсот. тел.:89246149992,\nlarmed2010@mail.ru\n\n",0,0,0,0,"Режиссер самодеятельного театрального коллектива, ВСГИК г. Улан - Удэ, 1983 г.",0]
["Итого:","2 учреждений в том числе  КДУ -2, ","8 коллективов, в том числе со званием\"Народный\" - 4",null,null,0,2,1,5,2,1,0,5,0,197,84,52,54,7,1,1,0,"2 заочный","6, из них 4 заочно",4,0,0,1,1,2,0]
[]
["Общая характеристика жанра в муниципальном образовании с указанием проблем и путей решения.   Народный театральный коллектив «Сказка» МБКДУ «Дворец культуры» создан в 1971 году и на протяжении многих лет он носит почетное звание «Народный». За годы своего существования были поставлены спектакли отечественных и зарубежных драматургов, классиков и современников. Совместная плодотворная работа позволяет ежегодно пополнять репертуар новыми постановками. Творческая деятельность коллектива вызывает признание как детей, так и взрослых. Каждое сыгранное произведение сопровождается положительными эмоциями и продолжительными аплодисментами. Хороший уровень исполнительского мастерства участников коллектива ни раз отмечен и компетентным жюри во время участия в международных, всероссийских и региональных фестивалях и конкурсах. Коллектив является постоянным участником городских мероприятий, праздников и народных гуляний. Хотелось бы видеть на территории области и города различные мастер-классы не только для руководителей, но и для участников клубных формирований.                                                                                                                                                                                                                                                                                                                                                "]
[" Руководитель органа управления культуры .                                                                                                                                                                                                                                                                                                                                                                                                                                                                        Дата _____________________ подпись______________________ расшифровка подписи___________________________"]

{"sheet":"Инструментал","index":4,"n_rows":21,"n_cols":35,"rows_kept":21,"merged":[[0,0,0,34],[1,0,1,34],[2,0,2,34],[3,0,3,34],[4,0,5,0],[4,1,5,1],[4,2,5,2],[4,3,5,3],[4,4,5,4],[4,5,4,17],[4,18,5,18],[4,19,4,22],[4,23,4,27],[4,28,5,28],[4,29,4,33],[4,34,5,34],[6,0,6,34],[19,0,19,20],[20,0,20,20]]}
["Свод сведений о клубных формированиях самодеятельного народного творчества по видам искусства за 2023 год"]
["Музыкальное искусство (инструментал)"]
["Предоставляется органом управления культуры муниципального образования в отдел народного творчества ГБУК \"ИОДНТ\" ведущему специалисту по жанрам творчества, методисту                                                                                                                                                                                                                                                                                                                                                             Будагаевой Галине Александровне в электронном виде на e-mail: iodnt-nt@mail.ru Телефон: 8 (3952) 24-26-92                                                                                                                                                                                                                                                                                                                                                                                                                                                Контактные данные заполнившего отчет _____________________________"]
["Муниципальное образование (город, район)"]
["№","Полное название учреждения, поселение","Полное название коллектива, в том числе имеющих звание \"Народный\", \"Образцовый\"  (указать коллективы со званием   не только при КДУ, но и другой ведомственной принадлежности)","Год подтверждения звания (для народных и образцовых)","Год создания коллектива","Форма объединения и  направление жанра",{"$nulls":12},"Общая численность участников","Из них численность  участников коллектива по возрастам",{"$nulls":3},"Участие в конкурсах (результат участия, название конкурса, организатор конкурса, место проведения, если заочно - указать) ",{"$nulls":4},"Руководитель коллектива (ФИО,\nзвание (при наличии), дата рождения,\nконтактный телефон,\ne-mail)","Образование руководителя (в образовании по профилю указать специализацию по диплому, учебное заведение, год окончания)",{"$nulls":4},"Сведения о КПК за истекший год (тема, количество часов, организатор курсов)"]
[{"$nulls":5},"оркестр народных инструментов","оркестр бурятских инструментов","оркестр духовых инструментов","оркестр эстрадно-духовых инструментов","оркестр ударных инструментов","ансамбль народных инструментов","ансамбль бурятских инструментов","ансамбль духовых инструментов","ансамбль эстрадно-духовых инструментов","ансамбль струнно-смычковых инструментов","ансамбль щипковых инструментов","ансамбль ударных инструментов","ВИА",null,"до 14 лет","15-34","35-59","60 и старше","районные, городские","областные","межрегиональные","всероссийские","международные",null,"среднее","среднее специальное","среднее специальное профильное","высшее","высшее профильное"]
["Образец заполнения"]
[1,"Муниципальное казенное учреждение культуры \"Социально-спортивный комплекс\" п. Сергеево","Образцовый ансамбль  народных инструментов \"Заиграй\"",2022,2005,{"$nulls":5},1,{"$nulls":7},8,5,3,{"$nulls":3},"Лауреат II степени областного конкурса гармонистов \"Играй, гамонь!\"",null,null,"Диплом I степени Международного конкурса народных инструментов \"Играй веселей\", заочно","Суриков Павел Валерьевич 18.12.1973 pavel@mail.ru 89145326541",{"$nulls":4},"руководитель оркестра народных инструментов ВСГАКИ 2002","КПК \"Основы духового исполнительства\" 72 ч. УМЦ \"Байкал\""]
[1,"Муниципальное бюджетное культурно-досуговое учреждение «Дворец культуры», г.Усолье-Сибирское","Эстрадно-духовой оркестр",null,2012,{"$nulls":3},1,{"$nulls":9},17,null,null,17,{"$nulls":6},"Каверзин Александр Данатович\n04.11.1956 г.\n89086529526\ne-mail: kavasaund@yandex.ru\n",1]
[2,"Муниципальное бюджетное культурно-досуговое учреждение «Дворец культуры», г.Усолье-Сибирское","Вокально-инструментальный ансамбль «Ступени»",null,2005,{"$nulls":12},1,5,null,5,{"$nulls":7},"Каверзин Александр Данатович\n04.11.1956 г.\n89086529526\ne-mail: kavasaund@yandex.ru\n",1]
[3,"Муниципальное бюджетное культурно-досуговое учреждение «Дворец культуры», г.Усолье-Сибирское","Вокально-инструментальный ансамбль  «Торнадо»",null,2000,{"$nulls":12},1,6,null,6,{"$nulls":7},"Каверзин Александр Данатович\n04.11.1956 г.\n89086529526\ne-mail: kavasaund@yandex.ru\n",1]
[4,"Муниципальное бюджетное культурно-досуговое учреждение «Дворец культуры», г.Усолье-Сибирское","Вокально-инструментальный ансамбль «Вторая параллель»",null,2005,{"$nulls":12},1,5,null,null,5,{"$nulls":6},"Каверзин Александр Данатович\n04.11.1956 г.\n89086529526\ne-mail: kavasaund@yandex.ru\n",1]
[5,"Муниципальное бюджетное культурно-досуговое учреждение «Дворец культуры», г.Усолье-Сибирское","Вокально-инструментальный ансамбль «Мысль»",null,2009,{"$nulls":12},1,5,5,{"$nulls":8},"Каверзин Александр Данатович\n04.11.1956 г.\n89086529526\ne-mail: kavasaund@yandex.ru\n",1]
[6,"Муниципальное бюджетное культурно-досуговое учреждение «Дворец культуры», г.Усолье-Сибирское","Вокально-инструментальный ансамбль «Проблемма»",null,2014,{"$nulls":12},1,5,null,5,{"$nulls":7},"Каверзин Александр Данатович\n04.11.1956 г.\n89086529526\ne-mail: kavasaund@yandex.ru\n",1]
[7,"Муниципальное бюджетное культурно-досуговое учреждение «Дворец культуры», г.Усолье-Сибирское","Вокально-инструментальный ансамбль «Мастер и Маргарита»",null,2000,{"$nulls":12},1,4,null,4,{"$nulls":7},"Каверзин Александр Данатович\n04.11.1956 г.\n89086529526\ne-mail: kavasaund@yandex.ru\n",1]
[8,"Муниципальное бюджетное культурно-досуговое учреждение «Дворец культуры», г.Усолье-Сибирское","Вокально-инструментальный ансамбль «Новый день»",null,2011,{"$nulls":12},1,5,null,5,{"$nulls":7},"Каверзин Александр Данатович\n04.11.1956 г.\n89086529526\ne-mail: kavasaund@yandex.ru\n",1]
[9,"Муниципальное бюджетное культурно-досуговое учреждение «Дворец культуры», г.Усолье-Сибирское","Вокально-инструментальный ансамбль «Надежда»",null,2016,{"$nulls":12},1,7,7,{"$nulls":8},"Каверзин Александр Данатович\n04.11.1956 г.\n89086529526\ne-mail: kavasaund@yandex.ru\n",1]
["Итого:","1 учреждений в том числе КДУ - 1","9 коллективов, в том числе  со завнием \"Народный\" -0; со званием \"Образцовый\" - 0",{"$nulls":5},1,{"$nulls":8},8,{"$f":"SUM(S9:S17)","v":59},{"$f":"SUM(T9:T17)","v":12},{"$f":"SUM(U9:U17)","v":25},22,0,{"$nulls":5},1,1]
[]
["Общая характеристика жанра с указанием проблем и путей решения.  Рок-группы уже более 10 лет занимаются на базе МБКДУ «Дворец культуры». Это направление имеет свою весьма небольшую зрительскую аудиторию. При подготовке мероприятий организаторы сталкиваются с проблемами технического плана (расположение инструментов на сцене мешает постановке хореографических номеров, группы не имеют мобильности). В связи с этим концерты рок-групп проходят не часто (1-3 раза в полугодие). Более востребован эстрадно-духовой оркестр, в котором занимаются как любители, так и профессиональные музыканты разных лет. Оркестр работает в джазовом направлении, но по заявке готовит необходимые композиции (марши, вальсы и др.) Выступление коллектива сталкивается с теми же проблемами, что и рок-группы (отсутствие мобильности, требования к специфическому репертуару, сложности в освобождении от основной работы на выступления коллектива). Дважды в год в МБКДУ «Дворец культуры» проводятся рок-фестивали.                                                                                                                                                                                                                                                                                                                                                                                                                   "]
[" Руководитель органа управления культуры.                                                                                                                                                                                                                                                                                                                                                                                                                                                                         Дата _________________подпись_____________________расшифровка подписи___________________"]

{"sheet":"Цирк","index":5,"n_rows":14,"n_cols":23,"rows_kept":14,"merged":[[0,0,0,22],[1,0,1,22],[2,0,2,22],[3,0,3,22],[4,0,5,0],[4,1,5,1],[4,2,5,2],[4,3,5,3],[4,4,5,4],[4,5,5,5],[4,6,5,6],[4,7,4,10],[4,11,4,15],[4,16,5,16],[4,17,4,21],[4,22,5,22],[6,0,6,22],[12,0,12,20],[13,0,13,20]]}
["Свод сведений о клубных формированиях самодеятельного народного творчества по видам искусства за 2023 год"]
["Цирковое искусство"]
["Предоставляется органом управления культуры муниципального образования в отдел народного творчества ГБУК \"ИОДНТ\" ведущему специалисту по жанрам творчества, методисту                                                                                                                                                                          Будагаевой Галине Александровне в электронном виде на e-mail: iodnt-nt@mail.ru Телефон: 8 (3952)24-26-92                                                                                                                                                                                                                                                                                                                              Контактные данные заполнившего отчет _____________________________"]
["Муниципальное образование (город, район)"]
["№","Полное название учреждения, поселение","Полное название коллектива, в том числе имеющих звание \"Народный\", \"Образцовый\"  (указать коллективы со званием   не только при КДУ, но и другой ведомственной принадлежности)","Год подтверждения звания (для народных и образцовых)","Год создания коллектива","Жанр творчества (воздушная гимнастика, спортивная гимнастика, эквилибр, жонгляж, клоунада и др.)","Общая численность участников","Из них численность  участников коллектива по возрастам",{"$nulls":3},"Участие в конкурсах (результат участия, название конкурса, организатор конкурса, место проведения, если заочно - указать) ",{"$nulls":4},"Руководитель коллектива (ФИО,\nзвание (при наличии), дата рождения,\nконтактный телефон,\ne-mail)","Образование руководителя (в образовании по профилю указать специализацию по диплому, учебное заведение, год окончания)",{"$nulls":4},"Сведения о КПК за истекший год (тема, количество часов, организатор курсов)"]
[{"$nulls":7},"до 14 лет","15-34","35-59","60 и старше","районные, городские","областные","межрегиональные","всероссийские","международные",null,"среднее","среднее специальное","среднее специальное профильное","высшее","высшее профильное"]
[]
[1,"Муниципальное казенное учреждение культуры \"Культурно-досуговый центр\" п. Перевальный","Образцовый цирковой коллектив \"Созвездие\"",2020,2010,"воздушная гимнастика, эквилибр, жонгляж",50,45,5,0,0,null,null,"Диплом I степени межрегионального конкурса \"Цирк прекрасен\" г. Улан-Удэ\"",null,"Гран-при Международного конкурса \"Феерия\" С-Петербург, заочно","Сергеева Валентина Михайловна, 14.18.1985 Valentina@mail.ru 89508256431",null,null,"руководитель циркового коллектива, цирковое училище им. М.Н. Румянцева г. Москва 2005 г.",null,null,"КПК \"Создание концертного номера\", 36 часов, УМЦ \"Байкал\""]
[1,"Муниципальное бюджетное культурно-досуговое учреждение «Дворец культуры», г.Усолье-Сибирское","Народный цирковой коллектив «Романтики»",2021,1965,"воздушная гимнастика, эквилибр, жонгляж",98,88,10,{"$nulls":7},"Кошкарева Ирина Геннадьевна\n07.06.1969 г.\n89021731636\ne-mail:\nkoshkareva69@bk.ru",null,"Клубный работник, Курское училище культуры 1983"]
[]
["Итого:","1 учреждений, в том числе  КДУ - 1","1 коллектив, в том числе со званием \"Народный\" - 1",{"$nulls":3},98,88,10,{"$nulls":9},1]
[]
["Общая характеристика жанра с указанием проблем и путей решения.  Народный цирковой коллектив «Романтики создан в далеком 1963 году. Воздушные акробаты – это гордость Дворца культуры, зритель с замиранием сердца наблюдает за гимнастами на полотнах, ремнях или бамбуке.\nТакже, являясь участником этого коллектива, ребята осваивают и другие виды циркового искусства: акробатические этюды на лестнице, клоунада, игры с хула-хупами, жонглирование. Не случайно среди бывших участников коллектива так много звезд циркового жанра, которые блистают на аренах России и за её пределами. Руководители циркового коллектива направляются на курсы повышения квалификации, однако все подобные мероприятия проводятся за пределами нашего муниципального образования и области, практически отсутствуют курсы на бесплатной основе, были бы интересны курсы повышения квалификации или мастер классы, которые бы проводились на базе учреждения и не только для руководителей, но и для участников циркового коллектива.\n                                                                                                                                                                                                                                                                                                                                      "]
[" Руководитель органа уравления культуры.                                                                                                                                                                                                                                                                                                                                                                                                                                                                                                                           Дата ____________________подпись_____________________расшифровка подписи______________________"]

{"sheet":" ИЗО и ДПИ Ф1","index":6,"n_rows":13,"n_cols":38,"rows_kept":13,"merged":[[0,0,0,37],[1,0,1,37],[2,0,2,37],[3,0,4,0],[3,1,4,1],[3,2,4,2],[3,3,4,3],[3,4,4,4],[3,5,3,20],[3,21,4,21],[3,22,3,25],[3,26,3,30],[3,31,4,31],[3,32,3,36],[3,37,4,37],[5,0,5,37],[11,0,11,23],[12,0,12,23]]}
["Свод сведений о клубных формированиях самодеятельного народного творчества по видам искусства за 2023 год"]
["Предоставляется органом управления культуры муниципального образования в отдел  \"Ремесленное подворье\" ГБУК \"ИОДНТ\"  заведующий отделом                                                                                                                                                                                                                                                                                                                                                      Ращенко Ольге Александровне в электронном виде на e-mail: remeslo@iodnt.ru  Телефон: 8 (3952) 48-71-30                                                                                                                                                                                                                                                                                                                                                                                                                                               Контактные данные заполнившего отчет _____________________________"]
["Муниципальное образование (город, район)"]
["№","Полное название учреждения, поселение","Полное название коллектива, в том числе имеющих звание \"Народный\", \"Образцовый\"  (указать коллективы со званием   не только при КДУ, но и другой ведомственной принадлежности)","Год подтверждения звания (для народных и образцовых)","Год создания коллектива","Жанр творчества",{"$nulls":15},"Общая численность участников","Из них численность  участников коллектива по возрастам",{"$nulls":3},"Участие в конкурсах (результат участия, название конкурса, организатор конкурса, место проведения, если заочно - указать) ",{"$nulls":4},"Руководитель коллектива (ФИО,\nзвание (при наличии), дата рождения,\nконтактный телефон,\ne-mail)","Образование руководителя (в образовании по профилю указать специализацию по диплому, учебное заведение, год окончания)",{"$nulls":4},"Сведения о КПК за истекший год (тема, количество часов, организатор курсов)"]
[{"$nulls":5},"кружевоплетение","художественная обработка бересты (в том числе роспись)","художественная обработка дерева (в том числе роспись)","художественная обработка кожи","художественная керамика","художественная вышивка","художественное вязание","ткачество","шитье (в том числе лоскутное)","народная кукла","валяние из шерсти","бисероплетение","соломоплетение","лозоплетение","изобразительное искусство (живопись, рисунок, графика, нетрадиционное искусство)","другое указать что конкретно",null,"до 14 лет","15-34","35-59","60 и старше","районные, городские","областные","межрегиональные","всероссийские","международные",null,"среднее","среднее специальное","среднее специальное профильное","высшее","высшее профильное"]
["Образец заполнения"]
[1,"Дом народного творчества муниципальное казенное учреждение культуры \"Межпоселенческий культурный центр администрации Черемховского районного муниципального образования\"","Народный клуб декоративно-прикладного творчества \"Сибирский ларец\"",2022,2009,0,1,1,0,0,0,0,0,0,1,0,0,1,0,null,0,30,19,5,3,3,{"$nulls":3},"Лауреат I степени Всероссийского конкурса \"Русский сувенир\" ГРДНТ г. Москва","Диплом I степени Международного конкурса \"Лоскуток\" г. Барнаул, заочно","Потылицына Тамара Николаевна, народный мастер Иркутской области     14.05.1981    89500719196",{"$nulls":3},"ВСГАКИ",null,"КПК \"Мастерство соломоплетения\" 36 ч. УМЦ \"Байкал\""]
[2,"и т.д."]
[3,"и т.д."]
["Итого:","18 учреждений, в том числе КДУ - 17, ДШИ - 1","20 коллективов, в том числе со званием \"Народный\" - 3",null,null,3,null,5,1,2,3,2,0,2,5,3,5,2,1,null,6,500,375,75,25,25,3,2,3,5,"6, заочно - 3",20,2,2,10,1,5,3]
[]
["Общая характеристика жанра с указанием проблем и путей решения"]
["Руководитель органа управления культуры                                                                                                                                                                                                                                                                                                                                                                                                                                                                              Дата ______________________________подпись________________________расшифровка подписи___________________________________"]

{"sheet":"ИЗО и ДПИ Ф2","index":7,"n_rows":13,"n_cols":10,"rows_kept":13,"merged":[[0,0,0,9],[1,0,1,9],[2,0,2,9],[3,0,4,0],[3,1,4,1],[3,2,4,2],[3,3,4,3],[3,4,4,4],[3,5,4,5],[3,6,4,6],[3,7,4,7],[3,8,4,8],[3,9,4,9],[5,0,5,9],[11,0,11,6],[12,0,12,6]]}
["Свод сведений народным художественным промыслам и ремеслам за 2023 год"]
["Предоставляется органом управления культуры муниципального образования в отдел  \"Ремесленное подворье\" ГБУК \"ИОДНТ\"  заведующий отделом                                                                                                                                                                                                                                                                                                                                                      Ращенко Ольге Александровне в электронном виде на e-mail: remeslo@iodnt.ru  Телефон: 8 (3952) 48-71-30                                                                                                                                                                                                                                                                                                                                                                                                                                               Контактные данные заполнившего отчет _____________________________"]
["Муниципальное образование (город, район)"]
["№","Перечень предприятий народных художественных промыслов и ремесел (далее НХП и НР)","ИНН предприятий НХП и НР","Вид ремесла","Перечень самозанятых мастеров и художников             ФИО телефон E-mail","Вид ремесла","Перечень автономных некомерческих организаций (АНО,НКО), занимающихся вопросами сохранения и развития НХП и ремесел","Руководитель организации","Контакты ","Основные крупные реализованные проекты или работающие проекты. "]
[]
["Образец заполнения"]
["1.","АО \"Ткачество\"",3847015956,"Художественная обработка камня","Иванов Иван Иванович                          тел 8 904 134 5678             ivanovip@mail.ru                ","изделия из бересты, дерева","АНО \"Творчество\"","Матвеева Клавдия Петровна","89041457256 tvorchestvo@yandex.ru","Фестиваль народных ремесел \"Рукомесло\""]
[null,"и т.д."]
[null,"и т.д."]
["Итого:",15,null,null,25,null,1]
[]
[]
["Руководитель органа управления культуры                                                                                                                                                                                                                                                                                                                                                                                                                                                                              Дата ______________________________подпись________________________расшифровка подписи___________________________________"]